Workbook

Sheet Generale
B2: GRPM 5.2 - by Renzo Di Chio
B3: Paziente corrente | L3: Utilità di gestione
B5: titolo | F5: c.f. | M5: Inserire una nuova anagrafica paziente o modificarne una esistente.
B6: cognome | F6: P. iva
B7: nome | M7: Inserire o modificare le Prestazioni sanitarie con i rispettivi costi.
B8: indirizzo | G8: n.
B9: città | E9: CAP | G9: prov. | M9: Permette di impostare l'orario degli appuntamenti settimanali.
B10: telefono | E10: e-mail
B11: Opposizine alla trasmissione al Sistema TS ai sensi dell’art.3 del D.M. 31-07-2015
B12: Prestazione Sanitaria
D13: n. terapie aperte | F13: preced. success. | M13: Visualizza una scheda che elenca le pterapie e le fatture del paziente selezionato o di tutti.
B14: inizio terapia
B15: terapia | M15: Crea un prospetto generale delle fatture emesse, ordinate per cliente.
B16: sedute | C16: sedute | D16: effettuate | F16: previste
B17: cadenza | C17: sedute | M17: Crea un prospetto delle fatture emesse, del periodo desiderato.
B18: appuntamento | C18: sedute | E18: ora
F19: prestazione Resa a:
B20: Emissione Fattura
B21: n. prossima Fattura | D21: data | I21: importo
B22: PR1-2019 | F22: Importo prestazione Sanitaria €
B23: Prestazioni non sanitarie o altri importi imponibili da inserire in fattura | D23: descrizione
I24: importo
H25: €
M26: Adatta la visualizzazione del foglio
M28: Permette di accedere a diverse funzioni di manutenzione e modifiche in modalità libera.
B30: Prodotto in licenza a: DCHRNZ57E19F158M | L30: Per assistenza rivolgersi a: renzo@dichiostudio.it - 328 0618366

Sheet Pazienti (hidden)
A1: =COUNTA(J5:J204) -> 0 | B1: Elenco Pazienti
M2: =SUM(N5:N204) -> 0 | N2: =SUBTOTAL(9,N5:N204) -> 0 | O2: 0 | P2: 0 | Q2: 0 | R2: 0 | S2: 0 | T2: 0 | X2: =SUBTOTAL(9,X5:X204) -> 0
A4: cod. | B4: Titolo | C4: Cognome Denominazione | D4: Nome | E4: Indirizzo | F4: n. civico | G4: CAP | H4: Città | I4: Provincia | J4: Cod. Fisc | K4: partita IVA | L4: paese | M4: opposi- zione | N4: Fatture emesse | O4: Totale Imponibile | P4: ENPAP | Q4: Totale IVA | R4: Totale Fatture | S4: Totale Ritenute | T4: Totali Incassato | U4: Tel. | V4: e-mail | W4: Codice Destinatario Fatturazione PA-PR | X4: Imposta di Bollo
A5: 1
A6: 2
A7: 3
A8: 4
A9: 5
A10: 6
A11: 7
A12: 8
A13: 9
A14: 10
A15: 11
A16: 12
A17: 13
A18: 14
A19: 15
A20: 16
A21: 17
A22: 18
A23: 19
A24: 20
A25: 21
A26: 22
A27: 23
A28: 24
A29: 25
A30: 26
A31: 27
A32: 28
A33: 29
A34: 30
A35: 31
A36: 32
A37: 33
A38: 34
A39: 35
A40: 36
A41: 37
A42: 38
A43: 39
A44: 40
A45: 41
A46: 42
A47: 43
A48: 44
A49: 45
A50: 46
A51: 47
A52: 48
A53: 49
A54: 50
A55: 51
A56: 52
A57: 53
A58: 54
A59: 55
A60: 56
A61: 57
A62: 58
A63: 59
A64: 60
A65: 61
A66: 62
A67: 63
A68: 64
A69: 65
A70: 66
A71: 67
A72: 68
A73: 69
A74: 70
A75: 71
A76: 72
A77: 73
A78: 74
A79: 75
A80: 76
A81: 77
A82: 78
A83: 79
A84: 80
A85: 81
A86: 82
A87: 83
A88: 84
A89: 85
A90: 86
A91: 87
A92: 88
A93: 89
A94: 90
A95: 91
A96: 92
A97: 93
A98: 94
A99: 95
A100: 96
A101: 97
A102: 98
A103: 99
A104: 100
A105: 101
A106: 102
A107: 103
A108: 104
A109: 105
A110: 106
A111: 107
A112: 108
A113: 109
A114: 110
A115: 111
A116: 112
A117: 113
A118: 114
A119: 115
A120: 116
A121: 117
A122: 118
A123: 119
A124: 120
A125: 121
A126: 122
A127: 123
A128: 124
A129: 125
A130: 126
A131: 127
A132: 128
A133: 129
A134: 130
A135: 131
A136: 132
A137: 133
A138: 134
A139: 135
A140: 136
A141: 137
A142: 138
A143: 139
A144: 140
A145: 141
A146: 142
A147: 143
A148: 144
A149: 145
A150: 146
A151: 147
A152: 148
A153: 149
A154: 150
A155: 151
A156: 152
A157: 153
A158: 154
A159: 155
A160: 156
A161: 157
A162: 158
A163: 159
A164: 160
A165: 161
A166: 162
A167: 163
A168: 164
A169: 165
A170: 166
A171: 167
A172: 168
A173: 169
A174: 170
A175: 171
A176: 172
A177: 173
A178: 174
A179: 175
A180: 176
A181: 177
A182: 178
A183: 179
A184: 180
A185: 181
A186: 182
A187: 183
A188: 184
A189: 185
A190: 186
A191: 187
A192: 188
A193: 189
A194: 190
A195: 191
A196: 192
A197: 193
A198: 194
A199: 195
A200: 196
A201: 197
... 3 more rows

Sheet Terapie (hidden)
A1: =COUNTA(C5:C404) -> 0 | B1: TERAPIE
M2: =SUBTOTAL(9,M5:M204) -> 0 | N2: 0 | O2: 0 | P2: 0 | Q2: 0 | R2: 0
A4: n. | B4: Paziente | C4: Inizio Terapia | D4: Cod. Terapia | E4: Terapia | F4: Frequenza | G4: Giorno | H4: ora | I4: sedute previste | J4: importo | K4: Totale previsto | L4: Fatture emesse | M4: Imponibile | N4: ENPAP | O4: IVA | P4: Tot. Fattura | Q4: Ritenuta d'acconto | R4: Netto Incassato | S4: prestazione resa a persona diversa
A5: 1 | K5: =I5*J5 -> 0
A6: 2 | K6: 0
A7: 3 | K7: 0
A8: 4 | K8: 0
A9: 5 | K9: 0
A10: 6 | K10: 0
A11: 7 | K11: 0
A12: 8 | K12: 0
A13: 9 | K13: =I13*J13 -> 0
A14: 10 | K14: 0
A15: 11 | K15: 0
A16: 12 | K16: 0
A17: 13 | K17: 0
A18: 14 | K18: 0
A19: 15 | K19: 0
A20: 16 | K20: 0
A21: 17 | K21: =I21*J21 -> 0
A22: 18 | K22: 0
A23: 19 | K23: 0
A24: 20 | K24: 0
A25: 21 | K25: 0
A26: 22 | K26: 0
A27: 23 | K27: 0
A28: 24 | K28: 0
A29: 25 | K29: 0
A30: 26 | K30: 0
A31: 27 | K31: 0
A32: 28 | K32: 0
A33: 29 | K33: 0
A34: 30 | K34: 0
A35: 31 | K35: 0
A36: 32 | K36: 0
A37: 33 | K37: 0
A38: 34 | K38: 0
A39: 35 | K39: 0
A40: 36 | K40: 0
A41: 37 | K41: 0
A42: 38 | K42: 0
A43: 39 | K43: 0
A44: 40 | K44: 0
A45: 41 | K45: 0
A46: 42 | K46: 0
A47: 43 | K47: 0
A48: 44 | K48: 0
A49: 45 | K49: 0
A50: 46 | K50: 0
A51: 47 | K51: 0
A52: 48 | K52: 0
A53: 49 | K53: 0
A54: 50 | K54: 0
A55: 51 | K55: 0
A56: 52 | K56: 0
A57: 53 | K57: 0
A58: 54 | K58: 0
A59: 55 | K59: 0
A60: 56 | K60: 0
A61: 57 | K61: 0
A62: 58 | K62: 0
A63: 59 | K63: 0
A64: 60 | K64: 0
A65: 61 | K65: 0
A66: 62 | K66: 0
A67: 63 | K67: 0
A68: 64 | K68: 0
A69: 65 | K69: 0
A70: 66 | K70: =I70*J70 -> 0
A71: 67 | K71: 0
A72: 68 | K72: 0
A73: 69 | K73: 0
A74: 70 | K74: 0
A75: 71 | K75: 0
A76: 72 | K76: 0
A77: 73 | K77: 0
A78: 74 | K78: 0
A79: 75 | K79: 0
A80: 76 | K80: 0
A81: 77 | K81: 0
A82: 78 | K82: 0
A83: 79 | K83: 0
A84: 80 | K84: 0
A85: 81 | K85: 0
A86: 82 | K86: 0
A87: 83 | K87: 0
A88: 84 | K88: 0
A89: 85 | K89: 0
A90: 86 | K90: 0
A91: 87 | K91: 0
A92: 88 | K92: 0
A93: 89 | K93: 0
A94: 90 | K94: 0
A95: 91 | K95: 0
A96: 92 | K96: 0
A97: 93 | K97: 0
A98: 94 | K98: 0
A99: 95 | K99: 0
A100: 96 | K100: 0
A101: 97 | K101: 0
A102: 98 | K102: 0
A103: 99 | K103: 0
A104: 100 | K104: 0
A105: 101 | K105: 0
A106: 102 | K106: 0
A107: 103 | K107: 0
A108: 104 | K108: 0
A109: 105 | K109: 0
A110: 106 | K110: 0
A111: 107 | K111: 0
A112: 108 | K112: 0
A113: 109 | K113: 0
A114: 110 | K114: 0
A115: 111 | K115: 0
A116: 112 | K116: 0
A117: 113 | K117: 0
A118: 114 | K118: 0
A119: 115 | K119: 0
A120: 116 | K120: 0
A121: 117 | K121: 0
A122: 118 | K122: 0
A123: 119 | K123: 0
A124: 120 | K124: 0
A125: 121 | K125: 0
A126: 122 | K126: 0
A127: 123 | K127: 0
A128: 124 | K128: 0
A129: 125 | K129: 0
A130: 126 | K130: 0
A131: 127 | K131: 0
A132: 128 | K132: 0
A133: 129 | K133: 0
A134: 130 | K134: =I134*J134 -> 0
A135: 131 | K135: 0
A136: 132 | K136: 0
A137: 133 | K137: 0
A138: 134 | K138: 0
A139: 135 | K139: 0
A140: 136 | K140: 0
A141: 137 | K141: 0
A142: 138 | K142: 0
A143: 139 | K143: 0
A144: 140 | K144: 0
A145: 141 | K145: 0
A146: 142 | K146: 0
A147: 143 | K147: 0
A148: 144 | K148: 0
A149: 145 | K149: 0
A150: 146 | K150: 0
A151: 147 | K151: 0
A152: 148 | K152: 0
A153: 149 | K153: 0
A154: 150 | K154: 0
A155: 151 | K155: 0
A156: 152 | K156: 0
A157: 153 | K157: 0
A158: 154 | K158: 0
A159: 155 | K159: 0
A160: 156 | K160: 0
A161: 157 | K161: 0
A162: 158 | K162: 0
A163: 159 | K163: 0
A164: 160 | K164: 0
A165: 161 | K165: 0
A166: 162 | K166: 0
A167: 163 | K167: 0
A168: 164 | K168: 0
A169: 165 | K169: 0
A170: 166 | K170: 0
A171: 167 | K171: 0
A172: 168 | K172: 0
A173: 169 | K173: 0
A174: 170 | K174: 0
A175: 171 | K175: 0
A176: 172 | K176: 0
A177: 173 | K177: 0
A178: 174 | K178: 0
A179: 175 | K179: 0
A180: 176 | K180: 0
A181: 177 | K181: 0
A182: 178 | K182: 0
A183: 179 | K183: 0
A184: 180 | K184: 0
A185: 181 | K185: 0
A186: 182 | K186: 0
A187: 183 | K187: 0
A188: 184 | K188: 0
A189: 185 | K189: 0
A190: 186 | K190: 0
A191: 187 | K191: 0
A192: 188 | K192: 0
A193: 189 | K193: 0
A194: 190 | K194: 0
A195: 191 | K195: 0
A196: 192 | K196: 0
A197: 193 | K197: 0
A198: 194 | K198: =I198*J198 -> 0
A199: 195 | K199: 0
A200: 196 | K200: 0
A201: 197 | K201: 0
... 203 more rows

Sheet Riepilogo (hidden)
C1: Riepilogo Fatture emesse
F2: =SUBTOTAL(9,F5:F1004) -> 0 | G2: 0 | H2: 0 | I2: 0 | J2: 0 | K2: 0 | L2: 0
B4: n. Fattura | C4: Data | D4: Cliente | E4: Cod. cliente | F4: imponibile | G4: ENPAP | H4: IVA | I4: Tot. Fattura | J4: Ritenuta d'acconto | K4: Netto incassato | L4: Bollo
A5: 1
A6: 2
A7: 3
A8: 4
A9: 5
A10: 6
A11: 7
A12: 8
A13: 9
A14: 10
A15: 11
A16: 12
A17: 13
A18: 14
A19: 15
A20: 16
A21: 17
A22: 18
A23: 19
A24: 20
A25: 21
A26: 22
A27: 23
A28: 24
A29: 25
A30: 26
A31: 27
A32: 28
A33: 29
A34: 30
A35: 31
A36: 32
A37: 33
A38: 34
A39: 35
A40: 36
A41: 37
A42: 38
A43: 39
A44: 40
A45: 41
A46: 42
A47: 43
A48: 44
A49: 45
A50: 46
A51: 47
A52: 48
A53: 49
A54: 50
A55: 51
A56: 52
A57: 53
A58: 54
A59: 55
A60: 56
A61: 57
A62: 58
A63: 59
A64: 60
A65: 61
A66: 62
A67: 63
A68: 64
A69: 65
A70: 66
A71: 67
A72: 68
A73: 69
A74: 70
A75: 71
A76: 72
A77: 73
A78: 74
A79: 75
A80: 76
A81: 77
A82: 78
A83: 79
A84: 80
A85: 81
A86: 82
A87: 83
A88: 84
A89: 85
A90: 86
A91: 87
A92: 88
A93: 89
A94: 90
A95: 91
A96: 92
A97: 93
A98: 94
A99: 95
A100: 96
A101: 97
A102: 98
A103: 99
A104: 100
A105: 101
A106: 102
A107: 103
A108: 104
A109: 105
A110: 106
A111: 107
A112: 108
A113: 109
A114: 110
A115: 111
A116: 112
A117: 113
A118: 114
A119: 115
A120: 116
A121: 117
A122: 118
A123: 119
A124: 120
A125: 121
A126: 122
A127: 123
A128: 124
A129: 125
A130: 126
A131: 127
A132: 128
A133: 129
A134: 130
A135: 131
A136: 132
A137: 133
A138: 134
A139: 135
A140: 136
A141: 137
A142: 138
A143: 139
A144: 140
A145: 141
A146: 142
A147: 143
A148: 144
A149: 145
A150: 146
A151: 147
A152: 148
A153: 149
A154: 150
A155: 151
A156: 152
A157: 153
A158: 154
A159: 155
A160: 156
A161: 157
A162: 158
A163: 159
A164: 160
A165: 161
A166: 162
A167: 163
A168: 164
A169: 165
A170: 166
A171: 167
A172: 168
A173: 169
A174: 170
A175: 171
A176: 172
A177: 173
A178: 174
A179: 175
A180: 176
A181: 177
A182: 178
A183: 179
A184: 180
A185: 181
A186: 182
A187: 183
A188: 184
A189: 185
A190: 186
A191: 187
A192: 188
A193: 189
A194: 190
A195: 191
A196: 192
A197: 193
A198: 194
A199: 195
A200: 196
A201: 197
... 804 more rows

Sheet Fatture (hidden)
C1: Fatture emesse (per righe) | G1: Ogni fattura si compone di due righe: la prima ha dati relativi alla prestazione sanitaria, la seconda ha i dati di una prestazione diversa. La descrizione degli importi è specificata accanto | H1: prest. Sanit. | I1: ENPAP Sanit. | J1: ENPAP | K1: Bollo | L1: Tot. Imponibile | M1: RA | N1: Rit. Acconto | O1: Opposizione
H2: Altra prest. | I2: ENPAP Altra | J2: IVA | K2: importo IVA | L2: Tot. Fattura | N2: Netto pagato | O2: Bollo Virtuale
A3: =COUNTA(B5:B1004) -> 0 | H3: Le descrizioni su campo verde si riferiscono a valori generali della fattura
A4: n. | B4: N. | C4: Data CUP/CIG | D4: Cod. Cliente | E4: Riga | F4: 1 - Cliente 2 - destinatario prestazione | G4: Descrizione | H4: prestazioni | I4: cassa ENPAP | J4: aliquote | K4: Bollo IVA | L4: Tot Imponibile Tot fattura | M4: aliquota Ritenuta | N4: Ritenuta Netto pagato | O4: Opposizione
A5: 1
A6: =A5+1 -> 2
A7: =A6+1 -> 3
A8: =A7+1 -> 4
A9: 5
A10: 6
A11: 7
A12: 8
A13: 9
A14: 10
A15: 11
A16: 12
A17: 13
A18: 14
A19: 15
A20: 16
A21: 17
A22: 18
A23: 19
A24: 20
A25: 21
A26: 22
A27: 23
A28: 24
A29: 25
A30: 26
A31: 27
A32: 28
A33: 29
A34: 30
A35: 31
A36: 32
A37: 33
A38: 34
A39: 35
A40: 36
A41: 37
A42: 38
A43: 39
A44: 40
A45: 41
A46: 42
A47: 43
A48: 44
A49: 45
A50: 46
A51: 47
A52: 48
A53: 49
A54: 50
A55: 51
A56: 52
A57: 53
A58: 54
A59: 55
A60: 56
A61: 57
A62: 58
A63: 59
A64: 60
A65: 61
A66: 62
A67: 63
A68: 64
A69: 65
A70: 66
A71: 67
A72: =A71+1 -> 68
A73: 69
A74: 70
A75: 71
A76: 72
A77: 73
A78: 74
A79: 75
A80: 76
A81: 77
A82: 78
A83: 79
A84: 80
A85: 81
A86: 82
A87: 83
A88: 84
A89: 85
A90: 86
A91: 87
A92: 88
A93: 89
A94: 90
A95: 91
A96: 92
A97: 93
A98: 94
A99: 95
A100: 96
A101: 97
A102: 98
A103: 99
A104: 100
A105: 101
A106: 102
A107: 103
A108: 104
A109: 105
A110: 106
A111: 107
A112: 108
A113: 109
A114: 110
A115: 111
A116: 112
A117: 113
A118: 114
A119: 115
A120: 116
A121: 117
A122: 118
A123: 119
A124: 120
A125: 121
A126: 122
A127: 123
A128: 124
A129: 125
A130: 126
A131: 127
A132: 128
A133: 129
A134: 130
A135: 131
A136: =A135+1 -> 132
A137: 133
A138: 134
A139: 135
A140: 136
A141: 137
A142: 138
A143: 139
A144: 140
A145: 141
A146: 142
A147: 143
A148: 144
A149: 145
A150: 146
A151: 147
A152: 148
A153: 149
A154: 150
A155: 151
A156: 152
A157: 153
A158: 154
A159: 155
A160: 156
A161: 157
A162: 158
A163: 159
A164: 160
A165: 161
A166: 162
A167: 163
A168: 164
A169: 165
A170: 166
A171: 167
A172: 168
A173: 169
A174: 170
A175: 171
A176: 172
A177: 173
A178: 174
A179: 175
A180: 176
A181: 177
A182: 178
A183: 179
A184: 180
A185: 181
A186: 182
A187: 183
A188: 184
A189: 185
A190: 186
A191: 187
A192: 188
A193: 189
A194: 190
A195: 191
A196: 192
A197: 193
A198: 194
A199: 195
A200: =A199+1 -> 196
... 1804 more rows

Sheet TipoPrestazione (hidden)
A1: =COUNTA(B5:B24) -> 1 | B1: Prestazioni Sanitarie
A4: n. | B4: Descrizione | C4: Frequenza | D4: n. sedute previste | E4: importo a seduta
A5: 1 | B5: Nessuna | D5: 0 | E5: 0,00
A6: 2
A7: 3
A8: 4
A9: 5
A10: 6
A11: 7
A12: 8
A13: 9
A14: 10
A15: 11
A16: 12
A17: 13
A18: 14
A19: 15
A20: 16
A21: 17
A22: 18
A23: 19
A24: 20
A25: 21
A26: 22
A27: 23
A28: 24
A29: 25
A30: 26
A31: 27
A32: 28
A33: 29
A34: 30
A35: 31
A36: 32
A37: 33
A38: 34
A39: 35
A40: 36
A41: 37
A42: 38
A43: 39
A44: 40
A45: 41
A46: 42
A47: 43
A48: 44
A49: 45
A50: 46
A51: 47
A52: 48
A53: 49
A54: 50
A55: 51
A56: 52
A57: 53
A58: 54
A59: 55
A60: 56
A61: 57
A62: 58
A63: 59
A64: 60
A65: 61
A66: 62
A67: 63
A68: 64
A69: 65
A70: 66
A71: 67
A72: 68
A73: 69
A74: 70
A75: 71
A76: 72
A77: 73
A78: 74
A79: 75
A80: 76
A81: 77
A82: 78
A83: 79
A84: 80
A85: 81
A86: 82
A87: 83
A88: 84
A89: 85
A90: 86
A91: 87
A92: 88
A93: 89
A94: 90
A95: 91
A96: 92
A97: 93
A98: 94
A99: 95
A100: 96
A101: 97
A102: 98
A103: 99
A104: 100

Sheet Calendario (hidden)
B2: l'ora indicata è quella d'inizio della seduta (durata un'ora - pausa 15')
B3: lunedì | C3: martedì | D3: mercoledì | E3: giovedì | F3: venerdì | G3: sabato | H3: domenica
C4: 7:00 | E4: 7:00
B5: 7:30 | C5: 8:15 | D5: 8:15 | E5: 8:15 | F5: 8:15 | G5: 8:15
B6: 8:00 | C6: 10:30 | D6: 10:30 | E6: 10:30 | F6: 10:30 | G6: 10:30 | H6: 10:30
B7: 8:30 | C7: 11:45 | D7: 11:45 | E7: 11:45 | F7: 11:45 | G7: 11:45
B8: 9:00 | C8: 13:00 | D8: 13:00 | F8: 13:00
B9: 9:30 | C9: 15:00 | D9: 15:00 | E9: 15:00 | F9: 15:00 | G9: 15:00 | H9: 15:00
B10: 10:00 | C10: 16:15 | D10: 16:15 | F10: 16:15 | G10: 16:15 | H10: 16:15
B11: 10:30 | C11: 17:30 | D11: 17:30 | F11: 17:30 | G11: 17:30 | H11: 17:30
B12: 11:00 | D12: 18:45 | F12: 18:45
B13: 11:30
B14: 12:00
B15: 12:30
B16: 13:00
B17: 13:30
B18: 15:00
B19: 15:30
B20: 16:00
B21: 16:30
B22: 17:00 | C22: 17:00 | D22: 17:00 | E22: 17:00 | F22: 17:00 | G22: 17:00 | H22: 17:00
B23: 17:30 | C23: 17:30 | D23: 17:30 | E23: 17:30 | F23: 17:30 | G23: 17:30 | H23: 17:30
A25: week | B25: lunedì | C25: martedì | D25: mercoledì | E25: giovedì | F25: venerdì | G25: sabato | H25: domenica
A26: 1 | C26: 2019-01-01 | D26: 2019-01-02 | E26: 2019-01-03 | F26: 2019-01-04 | G26: 2019-01-05 | H26: 2019-01-06
A27: 2 | B27: 2019-01-07 | C27: 2019-01-08 | D27: 2019-01-09 | E27: 2019-01-10 | F27: 2019-01-11 | G27: 2019-01-12 | H27: 2019-01-13
A28: 3 | B28: 2019-01-14 | C28: 2019-01-15 | D28: 2019-01-16 | E28: 2019-01-17 | F28: 2019-01-18 | G28: 2019-01-19 | H28: 2019-01-20
A29: 4 | B29: 2019-01-21 | C29: 2019-01-22 | D29: 2019-01-23 | E29: 2019-01-24 | F29: 2019-01-25 | G29: 2019-01-26 | H29: 2019-01-27
A30: 5 | B30: 2019-01-28 | C30: 2019-01-29 | D30: 2019-01-30 | E30: 2019-01-31 | F30: 2019-02-01 | G30: 2019-02-02 | H30: 2019-02-03
A31: 6 | B31: 2019-02-04 | C31: 2019-02-05 | D31: 2019-02-06 | E31: 2019-02-07 | F31: 2019-02-08 | G31: 2019-02-09 | H31: 2019-02-10
A32: 7 | B32: 2019-02-11 | C32: 2019-02-12 | D32: 2019-02-13 | E32: 2019-02-14 | F32: 2019-02-15 | G32: 2019-02-16 | H32: 2019-02-17
A33: 8 | B33: 2019-02-18 | C33: 2019-02-19 | D33: 2019-02-20 | E33: 2019-02-21 | F33: 2019-02-22 | G33: 2019-02-23 | H33: 2019-02-24
A34: 9 | B34: 2019-02-25 | C34: 2019-02-26 | D34: 2019-02-27 | E34: 2019-02-28 | F34: 2019-03-01 | G34: 2019-03-02 | H34: 2019-03-03
A35: 10 | B35: 2019-03-04 | C35: 2019-03-05 | D35: 2019-03-06 | E35: 2019-03-07 | F35: 2019-03-08 | G35: 2019-03-09 | H35: 2019-03-10
A36: 11 | B36: 2019-03-11 | C36: 2019-03-12 | D36: 2019-03-13 | E36: 2019-03-14 | F36: 2019-03-15 | G36: 2019-03-16 | H36: 2019-03-17
A37: 12 | B37: 2019-03-18 | C37: 2019-03-19 | D37: 2019-03-20 | E37: 2019-03-21 | F37: 2019-03-22 | G37: 2019-03-23 | H37: 2019-03-24
A38: 13 | B38: 2019-03-25 | C38: 2019-03-26 | D38: 2019-03-27 | E38: 2019-03-28 | F38: 2019-03-29 | G38: 2019-03-30 | H38: 2019-03-31
A39: 14 | B39: 2019-04-01 | C39: 2019-04-02 | D39: 2019-04-03 | E39: 2019-04-04 | F39: 2019-04-05 | G39: 2019-04-06 | H39: 2019-04-07
A40: 15 | B40: 2019-04-08 | C40: 2019-04-09 | D40: 2019-04-10 | E40: 2019-04-11 | F40: 2019-04-12 | G40: 2019-04-13 | H40: 2019-04-14
A41: 16 | B41: 2019-04-15 | C41: 2019-04-16 | D41: 2019-04-17 | E41: 2019-04-18 | F41: 2019-04-19 | G41: 2019-04-20 | H41: 2019-04-21
A42: 17 | B42: 2019-04-22 | C42: 2019-04-23 | D42: 2019-04-24 | E42: 2019-04-25 | F42: 2019-04-26 | G42: 2019-04-27 | H42: 2019-04-28
A43: 18 | B43: 2019-04-29 | C43: 2019-04-30 | D43: 2019-05-01 | E43: 2019-05-02 | F43: 2019-05-03 | G43: 2019-05-04 | H43: 2019-05-05
A44: 19 | B44: 2019-05-06 | C44: 2019-05-07 | D44: 2019-05-08 | E44: 2019-05-09 | F44: 2019-05-10 | G44: 2019-05-11 | H44: 2019-05-12
A45: 20 | B45: 2019-05-13 | C45: 2019-05-14 | D45: 2019-05-15 | E45: 2019-05-16 | F45: 2019-05-17 | G45: 2019-05-18 | H45: 2019-05-19
A46: 21 | B46: 2019-05-20 | C46: 2019-05-21 | D46: 2019-05-22 | E46: 2019-05-23 | F46: 2019-05-24 | G46: 2019-05-25 | H46: 2019-05-26
A47: 22 | B47: 2019-05-27 | C47: 2019-05-28 | D47: 2019-05-29 | E47: 2019-05-30 | F47: 2019-05-31 | G47: 2019-06-01 | H47: 2019-06-02
A48: 23 | B48: 2019-06-03 | C48: 2019-06-04 | D48: 2019-06-05 | E48: 2019-06-06 | F48: 2019-06-07 | G48: 2019-06-08 | H48: 2019-06-09
A49: 24 | B49: 2019-06-10 | C49: 2019-06-11 | D49: 2019-06-12 | E49: 2019-06-13 | F49: 2019-06-14 | G49: 2019-06-15 | H49: 2019-06-16
A50: 25 | B50: 2019-06-17 | C50: 2019-06-18 | D50: 2019-06-19 | E50: 2019-06-20 | F50: 2019-06-21 | G50: 2019-06-22 | H50: 2019-06-23
A51: 26 | B51: 2019-06-24 | C51: 2019-06-25 | D51: 2019-06-26 | E51: 2019-06-27 | F51: 2019-06-28 | G51: 2019-06-29 | H51: 2019-06-30
A52: 27 | B52: 2019-07-01 | C52: 2019-07-02 | D52: 2019-07-03 | E52: 2019-07-04 | F52: 2019-07-05 | G52: 2019-07-06 | H52: 2019-07-07
A53: 28 | B53: 2019-07-08 | C53: 2019-07-09 | D53: 2019-07-10 | E53: 2019-07-11 | F53: 2019-07-12 | G53: 2019-07-13 | H53: 2019-07-14
A54: 29 | B54: 2019-07-15 | C54: 2019-07-16 | D54: 2019-07-17 | E54: 2019-07-18 | F54: 2019-07-19 | G54: 2019-07-20 | H54: 2019-07-21
A55: 30 | B55: 2019-07-22 | C55: 2019-07-23 | D55: 2019-07-24 | E55: 2019-07-25 | F55: 2019-07-26 | G55: 2019-07-27 | H55: 2019-07-28
A56: 31 | B56: 2019-07-29 | C56: 2019-07-30 | D56: 2019-07-31 | E56: 2019-08-01 | F56: 2019-08-02 | G56: 2019-08-03 | H56: 2019-08-04
A57: 32 | B57: 2019-08-05 | C57: 2019-08-06 | D57: 2019-08-07 | E57: 2019-08-08 | F57: 2019-08-09 | G57: 2019-08-10 | H57: 2019-08-11
A58: 33 | B58: 2019-08-12 | C58: 2019-08-13 | D58: 2019-08-14 | E58: 2019-08-15 | F58: 2019-08-16 | G58: 2019-08-17 | H58: 2019-08-18
A59: 34 | B59: 2019-08-19 | C59: 2019-08-20 | D59: 2019-08-21 | E59: 2019-08-22 | F59: 2019-08-23 | G59: 2019-08-24 | H59: 2019-08-25
A60: 35 | B60: 2019-08-26 | C60: 2019-08-27 | D60: 2019-08-28 | E60: 2019-08-29 | F60: 2019-08-30 | G60: 2019-08-31 | H60: 2019-09-01
A61: 36 | B61: 2019-09-02 | C61: 2019-09-03 | D61: 2019-09-04 | E61: 2019-09-05 | F61: 2019-09-06 | G61: 2019-09-07 | H61: 2019-09-08
A62: 37 | B62: 2019-09-09 | C62: 2019-09-10 | D62: 2019-09-11 | E62: 2019-09-12 | F62: 2019-09-13 | G62: 2019-09-14 | H62: 2019-09-15
A63: 38 | B63: 2019-09-16 | C63: 2019-09-17 | D63: 2019-09-18 | E63: 2019-09-19 | F63: 2019-09-20 | G63: 2019-09-21 | H63: 2019-09-22
A64: 39 | B64: 2019-09-23 | C64: 2019-09-24 | D64: 2019-09-25 | E64: 2019-09-26 | F64: 2019-09-27 | G64: 2019-09-28 | H64: 2019-09-29
A65: 40 | B65: 2019-09-30 | C65: 2019-10-01 | D65: 2019-10-02 | E65: 2019-10-03 | F65: 2019-10-04 | G65: 2019-10-05 | H65: 2019-10-06
A66: 41 | B66: 2019-10-07 | C66: 2019-10-08 | D66: 2019-10-09 | E66: 2019-10-10 | F66: 2019-10-11 | G66: 2019-10-12 | H66: 2019-10-13
A67: 42 | B67: 2019-10-14 | C67: 2019-10-15 | D67: 2019-10-16 | E67: 2019-10-17 | F67: 2019-10-18 | G67: 2019-10-19 | H67: 2019-10-20
A68: 43 | B68: 2019-10-21 | C68: 2019-10-22 | D68: 2019-10-23 | E68: 2019-10-24 | F68: 2019-10-25 | G68: 2019-10-26 | H68: 2019-10-27
A69: 44 | B69: 2019-10-28 | C69: 2019-10-29 | D69: 2019-10-30 | E69: 2019-10-31 | F69: 2019-11-01 | G69: 2019-11-02 | H69: 2019-11-03
A70: 45 | B70: 2019-11-04 | C70: 2019-11-05 | D70: 2019-11-06 | E70: 2019-11-07 | F70: 2019-11-08 | G70: 2019-11-09 | H70: 2019-11-10
A71: 46 | B71: 2019-11-11 | C71: 2019-11-12 | D71: 2019-11-13 | E71: 2019-11-14 | F71: 2019-11-15 | G71: 2019-11-16 | H71: 2019-11-17
A72: 47 | B72: 2019-11-18 | C72: 2019-11-19 | D72: 2019-11-20 | E72: 2019-11-21 | F72: 2019-11-22 | G72: 2019-11-23 | H72: 2019-11-24
A73: 48 | B73: 2019-11-25 | C73: 2019-11-26 | D73: 2019-11-27 | E73: 2019-11-28 | F73: 2019-11-29 | G73: 2019-11-30 | H73: 2019-12-01
A74: 49 | B74: 2019-12-02 | C74: 2019-12-03 | D74: 2019-12-04 | E74: 2019-12-05 | F74: 2019-12-06 | G74: 2019-12-07 | H74: 2019-12-08
A75: 50 | B75: 2019-12-09 | C75: 2019-12-10 | D75: 2019-12-11 | E75: 2019-12-12 | F75: 2019-12-13 | G75: 2019-12-14 | H75: 2019-12-15
A76: 51 | B76: 2019-12-16 | C76: 2019-12-17 | D76: 2019-12-18 | E76: 2019-12-19 | F76: 2019-12-20 | G76: 2019-12-21 | H76: 2019-12-22
A77: 52 | B77: 2019-12-23 | C77: 2019-12-24 | D77: 2019-12-25 | E77: 2019-12-26 | F77: 2019-12-27 | G77: 2019-12-28 | H77: 2019-12-29
A78: 53 | B78: 2019-12-30 | C78: 2019-12-31

Sheet Modulo_Fattura (hidden)
E1: mod. 20181108
A2: Dott. Pinco Pallino Psicologo e Psicoterapeuta | E2: Fattura n.
A3: =CONCATENATE(Impostazioni!L7,", ",Impostazioni!L9," - ",Impostazioni!L11," ",Impostazioni!L13) -> , - | E3: data
A4: =CONCATENATE("C.F. ",Impostazioni!M17," - P.I. ",Impostazioni!M19) -> C.F. - P.I.
A5: Sig./a | F5: Cod. PA-PR:
F6: CIG:
A7: C.F. | B7: DCHRNZ57E19F158M | C7: P.iva | D7: 1548530839 | F7: CUP:
A8: Il paziente si oppone alla trasmissione al Sistema TS ai sensi dell’art.3 del D.M. 31-07-2015 | I8: FALSE
A9: descrizione della prestazione sanitaria o della cessione | E9: IVA | F9: ENPAP | G9: IMPONIBILE
F12: aliq. - ENPAP
E13: Totale Imponibile
A14: Bollo/aliquota iva/IVA
E15: TOTALE FATTURA
A16: RITENUTA D'ACCONTO (in caso di prestazioni a sostituto d'imposta)
A18: Riepilogo degli importi della Fattura | E18: da Pagare €
B19: RIEPILOGO | C19: IMPORTI
B20: PRESTAZIONI SANITARIE (iva esenti art.10) | C20: =G10 -> 0
B21: ALRI IMPORTI IMPONIBILI | C21: =G11 -> 0 | E21: Imposta di bollo assolta sull’originale
B22: =CONCATENATE("IVA ",(E14)*100,"%"," / ENPAP ",(E12)*100,"%") -> IVA 0% / ENPAP 0% | C22: =G14 -> 0 | D22: =G12 -> 0 | E22: ID n. ________________________
B23: RITENUTA D'ACCONTO | C23: =G16 -> 0
A24: le prestazioni sanitarie sono esenti IVA ai sensi dell'art. 10, comma 1, n. 18 del D.P.R. 633/72 e successive modificazioni. Le prestazioni di altro genere o di cessione di beni sono soggette ad IVA.
E27: =E1 -> mod. 20181108
A28: Dott. Pinco Pallino Psicologo e Psicoterapeuta | E28: Fattura n. | G28: =G2 -> 0
A29: =A3 -> , - | E29: data | G29: =G3 -> 0
A30: =A4 -> C.F. - P.I.
A31: =A5 -> Sig./a | B31: =B5 -> 0 | F31: Cod. PA-PR: | G31: =IF(G5<>"",G5,"") -> 
A32: =A6 -> 0 | F32: CIG: | G32: =IF(G6<>"",G6,"") -> 
A33: C.F. | B33: =IF(B7<>"",B7,"") -> DCHRNZ57E19F158M | C33: P.iva | D33: =IF(D7<>"",D7,"") -> 1548530839 | E33: =IF(E7<>"",E7,"") ->  | F33: CUP: | G33: =IF(G7<>"",G7,"") -> 
A34: =A8 -> Il paziente si oppone alla trasmissione al Sistema TS ai sensi dell’art.3 del D.M. 31-07-2015
A35: descrizione della prestazione sanitaria o della cessione | E35: IVA | F35: ENPAP | G35: IMPONIBILE
B36: =IF(B10<>"",B10,"") ->  | E36: =E10 -> 0 | F36: =F10 -> 0 | G36: =G10 -> 0
B37: =IF(B11<>"",B11,"") ->  | E37: =IF(E11<>0,E11,"") ->  | F37: =IF(F11<>0,F11,"") ->  | G37: =IF(G11<>0,G11,"") -> 
B38: =IF(B12<>"",B12,"") ->  | E38: =E12 -> 0 | F38: aliq. - ENPAP | G38: =G12 -> 0
E39: Totale Imponibile | G39: =G13 -> 0
A40: =A14 -> Bollo/aliquota iva/IVA | E40: =IF(E14<>0,E14,"") ->  | F40: =IF(F14<>0,F14,"") ->  | G40: =IF(G14<>0,G14,"") -> 
E41: TOTALE FATTURA | G41: =G15 -> 0
A42: RITENUTA D'ACCONTO (in caso di prestazioni a sostituto d'imposta) | E42: =IF(E16<>0,E16,"") ->  | F42: =IF(F16<>0,F16,"") ->  | G42: =IF(G16<>0,G16,"") -> 
A43: Apporre Marca da bollo da € 2,00
C44: FIRMA PER QUIETANZA ………………………………………………………………… | E44: da Pagare € | G44: =G18 -> 0
G45: =G19 -> 0
C48: Le prestazioni sanitarie sono esenti IVA ai sensi dell'art. 10, comma 1, n. 18 del D.P.R. 633/1972 e successive modificazioni, é soggette alla vigente imposta di bollo. Le prestazioni di altro genere o di cessione di beni sono soggette ad IVA. Nel caso di prestazioni ad imprese, il sostituto d'imposta è obbligato ad operare il prelievo ed il relativo versamento della ritenuta d'acconto sul lavoro autonomo.
... 1 more rows

Sheet Modulo_Prospetto (hidden)
C1: Tot. Imponibile | D1: Tot. Fatturato | E1: Prospetto fatture emesse per cliente totali cliente e dettaglio fatture | H1: Tot. Bollo | I1: Tot.ENPAP | K1: Tot.IVA | L1: Tot. R.A. | N1: Tot. Incassi
B5: cod.cli. | C5: codice fiscale | D5: CAP | E5: Prov. | F5: Città | G5: Denominazione | H5: prest. Sanit. | I5: ENPAP Sanit. | J5: %ENPAP | K5: Bollo | L5: Imponibile | M5: %RA | N5: Rit. Acconto
B7: n. Fatture | C7: partita IVA | D7: opposizione | E7: Civico | F7: Codice Univoco | G7: Indirizzo | H7: Altra prest. | I7: ENPAP Altra | J7: %IVA | K7: IVA | L7: Tot. Fattura | N7: Netto riscosso
H10: prest. Sanit. | I10: ENPAP Sanit. | J10: %ENPAP | K10: Bollo | L10: Tot. Impon. | M10: %RA | N10: Rit. Acconto
B11: N. | C11: Data Fattura | D11: Cod. Cliente | E11: Riga | F11: 1 - Cliente 2 - destinatario prestazione | G11: 1 - Descrizione prestazione sanitaria 2 - Descrizione altra voce non esente iva | H11: Altra prest. | I11: ENPAP Altra | J11: %IVA | K11: IVA | L11: Tot. Fattura | N11: Netto riscosso

Sheet Prospetto_FE (hidden)
C1: Prospetto Fatture emesse
G2: =SUBTOTAL(9,G5:G1004) -> 0 | H2: 0 | I2: 0 | J2: 0 | K2: 0 | L2: 0 | M2: 0
B3: periodo:
A4: n. | B4: n. Fattura | C4: Data | D4: Cliente | E4: Codice fiscale | F4: Cod. cliente | G4: imponibile | H4: ENPAP | I4: Bollo | J4: IVA | K4: Tot. Fattura | L4: Ritenuta d'acconto | M4: Netto incassato | N4: NO TS
B1006: * | C1006: * | D1006: Subtotali | F1006: * | G1006: =SUBTOTAL(9,G5:G1004) -> 0 | H1006: 0 | J1006: 0 | K1006: 0 | L1006: 0 | M1006: 0

Sheet Impostazioni (hidden)
A1: 1234 | B1: TRUE | C1: 08/05/2018
C2: IMPOSTAZIONI GENERALI | K2: Ragione sociale | Q2: Altri dati
C3: anno di gestione | D3: 2019 | F3: =CONCATENATE("Creato ",D3+1, " ?") -> Creato 2020 ? | K3: titolo | Q3: N. iscrizione:
C5: aliquota IVA | D5: 0 | F5: cartella conservazione fatture | K5: Intestazione | Q5: Ordine degli Psicologi Regione:
C7: Ritenuta d'acconto | D7: 0.2 | F7: C:\Users\Renzo\Desktop\Fatture2019 | K7: Indirizzo | Q7: dati polizza assicurativa
C9: Cassa ENPAP | D9: 0.02 | K9: civico | Q9: Compagnia assicurativa:
C11: compreso IVA | D11: FALSE | F11: Prog. Fattura Elettronica | G11: 2 | K11: CAP | Q11: N. Polizza:
C13: compreso ENPAP | D13: FALSE | F13: Bollo Virtuale | G13: TRUE | K13: comune | Q13: massimale:
C15: importo soglia x bollo | D15: 77.47 | F15: Prefisso fattura PA | G15: PA | K15: provincia | Q15: altri dati per la fattura elettronica
C17: compreso bollo | D17: FALSE | F17: prefisso fattura PR | G17: PR | L17: Codice fiscale | Q17: telefono:
C19: Imposta di bollo | D19: 2 | F19: Regime Fiscale: | G19: RF19 | K19: Partita iva | Q19: indirizzo di posta elettronica:
C21: Regime forfettario (art.1, c.54-89, L. 190/2014) | L21: IBAN: | Q21: Codice Destinatario:
F23: Modalità di pagamento: | G23: MP05 | L23: Istituto finanziario:
C25: bonifico
K27: Dott. Pinco Pallino Psicologo e Psicoterapeuta
C28: In questo riquadro vediamo tutti i valori fiscali che potranno cambiare solo al mutare di normative specifiche. Sarà necessario selezionare la cartella dove salvare le copie in pdf delle fatture emesse, al cui interno troveranno posto gli xml delle fatture elettroniche. Inoltre, si dovrà selezionare il regime fiscale, le modalità di pagamento ed i prefissi delle fatture elettroniche relative ai privati e alle pubbliche amministrazioni.
R29: =Generale!B2 -> GRPM 5.2 - by Renzo Di Chio
K31: I dati inseriti in questo riquadro, saranno trascritti nei moduli che riportano i dati d'intestazione del titolare dell'attività. Indirizzo, C.F. e P. iva saranno utilizzati nel modello della fattura. Nel riquadro sopra, scrivere e formattare il testo così come sarà trascritto nell'intestazione della fattura e cliccare sotto per la trascrizione. | Q31: Oltre i riferimenti all'iscrizione all'albo, sono necessari i dati relativi alla polizza assicurativa che dovranno essere indicati nel modello PSY18 e i dati sotto che saranno trascritti nelle fatture elettroniche. I dati di polizza saranno richiesti obbligatoriamente prima della stampa del primo mod. PSY18.

Sheet Modello PA-PR (hidden)
A1: <?xml version="1.0"?>
A2: <q1:FatturaElettronica xmlns:q1="http://ivaservizi.agenziaentrate.gov.it/docs/xsd/fatture/v1.2" versione="FPR12">
A3: <FatturaElettronicaHeader> | B3: =IF(AND(A3<>"",C3<>""),"DATO","") -> 
A4: <DatiTrasmissione>
A5: <IdTrasmittente>
A6: <IdPaese> | B6: DATO | C6: </IdPaese> | D6: lasciare vuoto per l'invio attraverso un provider
A7: <IdCodice> | B7: DATO | C7: </IdCodice> | D7: lasciare vuoto per l'invio attraverso un provider
A8: </IdTrasmittente>
A9: <ProgressivoInvio> | B9: DATO | C9: </ProgressivoInvio> | D9: lasciare vuoto per l'invio attraverso un provider
A10: <FormatoTrasmissione> | B10: SEL | C10: </FormatoTrasmissione> | D10: FPA12 | E10: Fattura verso PA
A11: <CodiceDestinatario> | B11: DATO | C11: </CodiceDestinatario> | D11: FPR12 | E11: Fattura verso privati
A12: <ContattiTrasmittente>
A13: <Telefono> | B13: DATO | C13: </Telefono>
A14: <Email> | B14: DATO | C14: </Email>
A15: </ContattiTrasmittente>
A16: </DatiTrasmissione>
A17: <CedentePrestatore>
A18: <DatiAnagrafici>
A19: <IdFiscaleIVA>
A20: <IdPaese> | B20: DATO | C20: </IdPaese>
A21: <IdCodice> | B21: DATO | C21: </IdCodice>
A22: </IdFiscaleIVA>
A23: <CodiceFiscale> | B23: DATO | C23: </CodiceFiscale>
A24: <Anagrafica>
A25: <Denominazione> | B25: DATO | C25: </Denominazione>
A26: </Anagrafica>
A27: <RegimeFiscale> | B27: SEL | C27: </RegimeFiscale> | D27: RF01 | E27: Ordinario
A28: </DatiAnagrafici> | D28: RF02 | E28: Contribuenti minimi (art.1, c.96-117, L. 244/07)
A29: <Sede> | D29: RF03 | E29: Nuove iniziative produttive (art.13, L. 388/00)
A30: <Indirizzo> | B30: DATO | C30: </Indirizzo> | D30: RF04 | E30: Agricoltura e attività connesse e pesca (artt.34 e 34-bis, DPR 633/72)
A31: <NumeroCivico> | B31: DATO | C31: </NumeroCivico> | D31: RF05 | E31: Vendita sali e tabacchi (art.74, c.1, DPR. 633/72)
A32: <CAP> | B32: DATO | C32: </CAP> | D32: RF06 | E32: Commercio fiammiferi (art.74, c.1, DPR 633/72)
A33: <Comune> | B33: DATO | C33: </Comune> | D33: RF07 | E33: Editoria (art.74, c.1, DPR 633/72)
A34: <Provincia> | B34: DATO | C34: </Provincia> | D34: RF08 | E34: Gestione servizi telefonia pubblica (art.74, c.1, DPR 633/72)
A35: <Nazione> | B35: DATO | C35: </Nazione> | D35: RF13 | E35: Vendite a domicilio (art.25-bis, c.6, DPR 600/73)
A36: </Sede> | D36: RF14 | E36: Rivendita beni usati, oggetti d’arte, d’antiquariato o da collezione (art.36, DL 41/95)
A37: <Contatti> | D37: RF15 | E37: Agenzie di vendite all’asta di oggetti d’arte, antiquariato o da collezione (art.40-bis, DL 41/95)
A38: <Telefono> | B38: DATO | C38: </Telefono> | D38: RF16 | E38: IVA per cassa P.A. (art.6, c.5, DPR 633/72)
A39: <Email> | B39: DATO | C39: </Email> | D39: RF17 | E39: IVA per cassa (art. 32-bis, DL 83/2012)
A40: </Contatti> | D40: RF18 | E40: Altro
A41: <RiferimentoAmministrazione> | B41: DATO | C41: </RiferimentoAmministrazione> | D41: RF19 | E41: Regime forfettario (art.1, c.54-89, L. 190/2014)
A42: </CedentePrestatore>
A43: <CessionarioCommittente>
A44: <DatiAnagrafici>
A45: <IdFiscaleIVA>
A46: <IdPaese> | B46: DATO | C46: </IdPaese>
A47: <IdCodice> | B47: DATO | C47: </IdCodice>
A48: </IdFiscaleIVA>
A49: <CodiceFiscale> | B49: DATO | C49: </CodiceFiscale>
A50: <Anagrafica>
A51: <Denominazione> | B51: DATO | C51: </Denominazione>
A52: <Nome> | B52: DATO | C52: </Nome>
A53: <Cognome> | B53: DATO | C53: </Cognome>
A54: <Titolo> | B54: DATO | C54: </Titolo>
A55: </Anagrafica>
A56: </DatiAnagrafici>
A57: <Sede>
A58: <Indirizzo> | B58: DATO | C58: </Indirizzo>
A59: <NumeroCivico> | B59: DATO | C59: </NumeroCivico>
A60: <CAP> | B60: DATO | C60: </CAP>
A61: <Comune> | B61: DATO | C61: </Comune>
A62: <Provincia> | B62: DATO | C62: </Provincia>
A63: <Nazione> | B63: DATO | C63: </Nazione>
A64: </Sede>
A65: </CessionarioCommittente>
A66: </FatturaElettronicaHeader>
A67: <FatturaElettronicaBody>
A68: <DatiGenerali> | B68: =IF(AND(A68<>"",C68<>""),"DATO","") -> 
A69: <DatiGeneraliDocumento>
A70: <TipoDocumento> | B70: SEL | C70: </TipoDocumento> | D70: TD01 | E70: fattura
A71: <Divisa> | B71: DATO | C71: </Divisa> | D71: TD02 | E71: acconto/anticipo su fattura
A72: <Data> | B72: DATO | C72: </Data> | D72: TD03 | E72: acconto/anticipo su parcella
A73: <Numero> | B73: DATO | C73: </Numero> | D73: TD04 | E73: nota di credito
D74: TD05 | E74: nota di debito
D75: TD06 | E75: parcella
A81: <DatiRitenuta>
A82: <TipoRitenuta> | B82: SEL | C82: </TipoRitenuta> | D82: RT01 | E82: Ritenuta persone fisiche
A83: <ImportoRitenuta> | B83: DATO | C83: </ImportoRitenuta> | D83: RT02 | E83: Ritenuta persone giuridiche
A84: <AliquotaRitenuta> | B84: DATO | C84: </AliquotaRitenuta>
A85: <CausalePagamento> | B85: DATO | C85: </CausalePagamento>
A86: </DatiRitenuta>
A91: <DatiBollo>
A92: <BolloVirtuale> | B92: SEL | C92: </BolloVirtuale> | D92: SI | E92: unico dato ammesso
A93: <ImportoBollo> | B93: DATO | C93: </ImportoBollo> | E93: nessun dato se NO
A94: </DatiBollo>
A101: <DatiCassaPrevidenziale>
A102: <TipoCassa> | B102: SEL | C102: </TipoCassa> | D102: TC01 | E102: Cassa nazionale previdenza e assistenza avvocati e procuratori legali
A103: <AlCassa> | B103: DATO | C103: </AlCassa> | D103: TC02 | E103: Cassa previdenza dottori commercialisti
A104: <ImportoContributoCassa> | B104: DATO | C104: </ImportoContributoCassa> | D104: TC03 | E104: Cassa previdenza e assistenza geometri
A105: <ImponibileCassa> | B105: DATO | C105: </ImponibileCassa> | D105: TC04 | E105: Cassa nazionale previdenza e assistenza ingegneri e architetti liberi professionisti
A106: <AliquotaIVA> | B106: DATO | C106: </AliquotaIVA> | D106: TC05 | E106: Cassa nazionale del notariato
A107: <Ritenuta> | B107: DATO | C107: </Ritenuta> | D107: TC06 | E107: Cassa nazionale previdenza e assistenza ragionieri e periti commerciali
A108: <Natura> | B108: SEL | C108: </Natura> | D108: TC07 | E108: Ente nazionale assistenza agenti e rappresentanti di commercio (ENASARCO)
A109: </DatiCassaPrevidenziale> | D109: TC08 | E109: Ente nazionale previdenza e assistenza consulenti del lavoro (ENPACL)
D110: TC09 | E110: Ente nazionale previdenza e assistenza medici (ENPAM)
A111: <ImportoTotaleDocumento> | B111: DATO | C111: </ImportoTotaleDocumento> | D111: TC10 | E111: Ente nazionale previdenza e assistenza farmacisti (ENPAF)
A112: </DatiGeneraliDocumento> | D112: TC11 | E112: Ente nazionale previdenza e assistenza veterinari (ENPAV)
A113: <DatiOrdineAcquisto> | D113: TC12 | E113: Ente nazionale previdenza e assistenza impiegati dell'agricoltura (ENPAIA)
A114: <IdDocumento> | B114: DATO | C114: </IdDocumento> | D114: TC13 | E114: Fondo previdenza impiegati imprese di spedizione e agenzie marittime
A115: <Data> | B115: DATO | C115: </Data> | D115: TC14 | E115: Istituto nazionale previdenza giornalisti italiani (INPGI)
A116: <CodiceCUP> | B116: DATO | C116: </CodiceCUP> | D116: TC15 | E116: Opera nazionale assistenza orfani sanitari italiani (ONAOSI)
A117: <CodiceCIG> | B117: DATO | C117: </CodiceCIG> | D117: TC16 | E117: Cassa autonoma assistenza integrativa giornalisti italiani (CASAGIT)
A118: </DatiOrdineAcquisto> | D118: TC17 | E118: Ente previdenza periti industriali e periti industriali laureati (EPPI)
A119: <DatiDDT> | D119: TC18 | E119: Ente previdenza e assistenza pluricategoriale (EPAP)
A120: <NumeroDDT> | B120: DATO | C120: </NumeroDDT> | D120: TC19 | E120: Ente nazionale previdenza e assistenza biologi (ENPAB)
A121: <DataDDT> | B121: DATO | C121: </DataDDT> | D121: TC20 | E121: Ente nazionale previdenza e assistenza professione infermieristica (ENPAPI)
A122: </DatiDDT> | D122: TC21 | E122: Ente nazionale previdenza e assistenza psicologi (ENPAP)
A123: </DatiGenerali> | D123: TC22 | E123: INPS
B124: =IF(AND(A130<>"",C124<>""),"DATO","") -> 
A130: <DatiBeniServizi>
A131: <DettaglioLinee>
A132: <NumeroLinea> | B132: DATO | C132: </NumeroLinea>
A133: <Descrizione> | B133: DATO | C133: </Descrizione>
A134: <Quantita> | B134: DATO | C134: </Quantita>
A135: <UnitaMisura> | B135: DATO | C135: </UnitaMisura>
A136: <PrezzoUnitario> | B136: DATO | C136: </PrezzoUnitario>
A137: <PrezzoTotale> | B137: DATO | C137: </PrezzoTotale>
A138: <AliquotaIVA> | B138: DATO | C138: </AliquotaIVA>
A139: <Ritenuta> | B139: DATO | C139: </Ritenuta>
A140: <Natura> | B140: SEL | C140: </Natura> | D140: N1 | E140: escluse ex art. 15
A141: </DettaglioLinee> | D141: N2 | E141: non soggette
D142: N3 | E142: non imponibili
D143: N4 | E143: esenti
D144: N5 | E144: regime del margine / IVA non esposta in fattura
D145: N6 | E145: inversione contabile (per le operazioni in reverse charge ovvero nei casi di autofatturazione per acquisti extra UE di servizi ovvero per importazioni di beni nei soli casi previsti)
D146: N7 | E146: IVA assolta in altro stato UE (vendite a distanza ex art. 40 c. 3 e 4 e art. 41 c. 1 lett. b, DL 331/93; prestazione di servizi di telecomunicazioni, tele-radiodiffusione ed elettronici ex art. 7-sexies lett. f, g, art. 74-sexies DPR 633/72)
A151: <DatiRiepilogo>
A152: <AliquotaIVA> | B152: DATO | C152: </AliquotaIVA>
A153: <Natura> | B153: DATO | C153: </Natura>
A154: <ImponibileImporto> | B154: DATO | C154: </ImponibileImporto>
A155: <Imposta> | B155: DATO | C155: </Imposta>
A156: <EsigibilitaIVA> | B156: DATO | C156: </EsigibilitaIVA>
A157: <RiferimentoNormativo> | B157: DATO | C157: </RiferimentoNormativo>
A158: </DatiRiepilogo>
A161: </DatiBeniServizi> | D161: TP01 | E161: pagamento a rate
A162: <DatiPagamento> | D162: TP02 | E162: pagamento completo
A163: <CondizioniPagamento> | B163: DATO | C163: </CondizioniPagamento> | D163: TP03 | E163: anticipo
A164: <DettaglioPagamento>
A165: <ModalitaPagamento> | B165: SEL | C165: </ModalitaPagamento> | D165: MP01 | E165: contanti
A166: <DataScadenzaPagamento> | B166: DATO | C166: </DataScadenzaPagamento> | D166: MP02 | E166: assegno
A167: <ImportoPagamento> | B167: DATO | C167: </ImportoPagamento> | D167: MP03 | E167: assegno circolare
A168: <CodUfficioPostale> | B168: DATO | C168: </CodUfficioPostale> | D168: MP04 | E168: contanti presso Tesoreria
A169: <CognomeQuietanzante> | B169: DATO | C169: </CognomeQuietanzante> | D169: MP05 | E169: bonifico
A170: <NomeQuietanzante> | B170: DATO | C170: </NomeQuietanzante> | D170: MP06 | E170: vaglia cambiario
A171: <CFQuietanzante> | B171: =IF(AND(A171<>"",C171<>""),"DATO","") -> DATO | C171: </CFQuietanzante> | D171: MP07 | E171: bollettino bancario
A172: <TitoloQuietanzante> | B172: DATO | C172: </TitoloQuietanzante> | D172: MP08 | E172: carta di pagamento
A173: <IstitutoFinanziario> | B173: DATO | C173: </IstitutoFinanziario> | D173: MP09 | E173: RID
A174: <IBAN> | B174: DATO | C174: </IBAN> | D174: MP10 | E174: RID utenze
A175: </DettaglioPagamento> | D175: MP11 | E175: RID veloce
A176: </DatiPagamento> | D176: MP12 | E176: RIBA
A177: </FatturaElettronicaBody> | D177: MP13 | E177: MAV
A178: </q1:FatturaElettronica> | D178: MP14 | E178: quietanza erario
D179: MP15 | E179: giroconto su conti di contabilità speciale
D180: MP16 | E180: domiciliazione bancaria
D181: MP17 | E181: domiciliazione postale
D182: MP18 | E182: bollettino di c/c postale
D183: MP19 | E183: SEPA Direct Debit
D184: MP20 | E184: SEPA Direct Debit CORE
D185: MP21 | E185: SEPA Direct Debit B2B
D186: MP22 | E186: Trattenuta su somme già riscosse
A190: <q1:FatturaElettronica xmlns:q1="http://ivaservizi.agenziaentrate.gov.it/docs/xsd/fatture/v1.2" versione="FPA12">

Sheet Mod_Psy (hidden)
A1: Modello Psy18
A2: Modulistica unica per la prestazione professionale psicologica
A6: mi dichiaro informata/o sui seguenti punti in relazione al consenso informato:
A8: 1. | B8: lo psicologo è strettamente tenuto ad attenersi al Codice Deontologico degli Psicologi Italiani;
A10: 2. | B10: la prestazione offerta riguarda:
B11: [specificare l’ambito di intervento. Ad esempio: consulenza psicologica, colloqui psicologici, supporto psicologico, psicoterapia, valutazione psicodiagnostica, valutazione neuropsicologica, intervento di psicologia del lavoro, dello sport, selezione del personale, ecc.]
A12: 3. | B12: la prestazione è da considerarsi ordinaria per i seguenti motivi:
B13: [specificare se ordinaria - “sono da considerarsi ordinarie: definizione del bisogno, presa in carico psicoterapeutica, supporto psicologico, ecc.”; se complessa indicando l’articolazione delle differenti prestazioni incluse o il coinvolgimento di altri professionisti - “è da considerarsi complessa in relazione al coinvolgimento nella presa in carico di altri professionisti (psicologo, neuropsichiatra e logopedista) al fine di …, in relazione all’utilizzo di diversi strumenti diagnostico-valutativi …, in relazione alle modalità multidisciplinari tipiche della struttura …]
A14: 4. | B14: la prestazione è finalizzata ad attività di prevenzione, diagnosi, abilitazione-riabilitazione e/o sostegno in ambito psicologico – (art.1 della legge n.56/1989);
A15: 5. | B15: per il conseguimento dell’obiettivo saranno utilizzati prevalentemente i seguenti strumenti:
B16: [indicare gli strumenti utilizzati, ad esempio colloquio psicologico clinico, test psicodiagnostici di vario tipo, scale di valutazione, ecc.]
A17: 6. | B17: la durata globale dell’intervento è definibile in n. ____ sedute/incontri/sessioni/…;
B18: [ndr: se non è possibile definire a priori il numero di sedute indicare che si concorderanno di volta in volta obiettivi e tempi]
A19: 7. | B19: in qualsiasi momento è possibile interrompere il rapporto comunicando alla/al dott.ssa/dott. ___________________________________________________ la volontà di interruzione;
A20: 8. | B20: può valutare ed eventualmente proporre l’interruzione del rapporto quando constata che non vi sia alcun beneficio dall’intervento e non è ragionevolmente prevedibile che ve ne saranno dal proseguimento dello stesso. Se richiesto può fornire le informazioni necessarie a ricercare altri e più adatti interventi (art.27 del Codice Deontologico degli Psicologi Italiani);
A21: 9. | B21: le Parti sono tenute alla scrupolosa osservanza delle date e degli orari degli appuntamenti che vengono concordati oppure all’inizio di ogni rapporto di consulenza e/o di psicoterapia. In caso di sopravvenuta impossibilità di rispettare l’appuntamento fissato, la Parte impossibilitata è tenuta a darne notizia all’altra in tempi congrui. Entrambe le Parti si impegnano a rendere attivi e raggiungibili i propri recapiti rispettivamente forniti.
A23: Modello Psy18
A25: Riceve il seguente preventivo di massima:
B26: ai sensi dell’art.9 comma 4 del D.L. n.1/2012 (convertito, con modificazioni, dalla Legge n.27/2012, e modificato dal comma 150 della Legge n.124/2017), si formula il preventivo di massima nei seguenti termini:
B27: Prestazione
B30: Si precisa che il compenso non può essere condizionato all’esito o ai risultati dell’intervento professionale. Il corrispettivo suindicato è formulato in relazione a un tariffario scelto dal professionista, indicato in termini generali o parziali, a seconda delle circostanze prevedibili e delle informazioni fornite e disponibili all’atto della redazione del presente atto. Il preventivo economico deve comunque intendersi suscettibile di modifiche, da comunicare per iscritto, qualora le prestazioni da svolgere cambino o si integrino radicalmente rispetto a quanto prospettato e comunicato o siano maggiormente complesse rispetto a quelle ad oggi ipotizzabili.
A33: Modello Psy18
A35: sui seguenti punti in relazione al trattamento dei dati personali ai sensi del Regolamento UE 2016/679:
A37: 1. | B37: Il Regolamento UE 2016/679 (di seguito GDPR) prevede e rafforza la protezione e il trattamento dei dati personali alla luce dei principi di correttezza, liceità, trasparenza, tutela della riservatezza e dei diritti dell’interessato in merito ai propri dati.
A38: 2. | B38: La/il dott.ssa/dott. _____________________________________ è titolare del trattamento dei seguenti dati raccolti per lo svolgimento dell’incarico oggetto di questo contratto:
B39: a. | C39: a. dati anagrafici, di contatto e di pagamento – informazioni relative al nome, numero di telefono, indirizzo PEO e PEC, nonché informazioni relative al pagamento dell’onorario per l’incarico (es. numero di carta di credito/debito), ecc.
C40: • | D40: Presupposto per il trattamento: esecuzione di obblighi contrattuali/precontrattuali. Il conferimento è obbligatorio.
B41: b. | C41: dati relativi allo stato di salute: i dati personali attinenti alla nostra/mia salute fisica o mentale sono raccolti direttamente, in relazione alla richiesta di esecuzione di valutazioni, esami, accertamenti diagnostici, interventi riabilitativi e ogni altra tipologia di servizio di natura professionale connesso con l’esecuzione dell’incarico.
C42: • | D42: Presupposto per il trattamento: esecuzione di obblighi contrattuali/precontrattuali. Il consenso è obbligatorio.
B43: Con il termine dati personali si intendono le categorie sopra indicate, congiuntamente considerate. Le riflessioni/valutazioni/interpretazioni professionali tradotte in dati dallo psicologo costituiscono l’insieme dei dati professionali, trattati secondo tutti i principi del GDPR e gestiti/dovuti secondo quanto previsto dal Codice Deontologico degli Psicologi Italiani.
A44: 3. | B44: I dati personali saranno sottoposti a modalità di trattamento sia cartaceo sia elettronico e/o automatizzato, quindi con modalità sia manuali che informatiche. In ogni caso saranno adottate tutte le procedure idonee a proteggerne la riservatezza, nel rispetto delle norme vigenti e del segreto professionale.
A46: 4. | B46: Saranno utilizzate adeguate misure di sicurezza al fine di garantire la protezione, la sicurezza, l’integrità e l’accessibilità dei dati personali.
A48: 5. | B48: I dati personali verranno conservati solo per il tempo necessario al conseguimento delle finalità per le quali sono stati raccolti o per qualsiasi altra legittima finalità a essi collegata.
A50: 6. | B50: I dati personali che non siano più necessari, o per i quali non vi sia più un presupposto giuridico per la relativa conservazione, verranno anonimizzati irreversibilmente o distrutti in modo sicuro.
A52: 7. | B52: I tempi di conservazione, in relazione alle differenti finalità sopra elencate, saranno i seguenti:
B54: a. | C54: dati anagrafici, di contatto e di pagamento: verranno tenuti per il tempo necessario a gestire gli adempimenti contrattuali/contabili e successivamente per un tempo di 10 anni;
A55: Modello Psy18
B57: b. | C57: dati relativi allo stato di salute: saranno conservati unicamente per il periodo di tempo strettamente necessario allo svolgimento dell’incarico e al perseguimento delle finalità proprie dell’incarico stesso e comunque per un periodo minimo di 5 anni (art.17 del Codice Deontologico degli Psicologi Italiani).
A59: 8. | B59: I dati personali potrebbero dover essere resi accessibili alle Autorità Sanitarie e/o Giudiziarie sulla base di precisi doveri di legge. In tutti gli altri casi, ogni comunicazione potrà avvenire solo previo esplicito consenso, e in particolare:
B61: a. | C61: dati anagrafici, di contatto e di pagamento: potranno essere accessibili anche a eventuali dipendenti, nonché a fornitori esterni che supportano l’erogazione dei servizi;
B63: b. | C63: dati relativi allo stato di salute: verranno resi noti, di regola, solamente all’interessato e solo in presenza di una delega scritta a terzi. Verrà adottato ogni mezzo idoneo a prevenire una conoscenza non autorizzata da parte di soggetti terzi anche compresenti al conferimento. Potranno essere condivisi, in caso di obblighi di legge, con strutture/servizi/operatori del SSN o altre Autorità pubbliche.
A65: 9. | B65: Salvo parere contrario, le informazioni contabili relative alle spese sanitarie verranno trasmesse all’Agenzia delle Entrate, tramite flusso telematico del Sistema Tessera Sanitaria, ai fini dell’elaborazione del mod.730/UNICO precompilato e risulteranno accessibili anche dai soggetti ai quali Lei dovesse risultare fiscalmente a carico (coniuge, genitori, ecc.). L’opposizione all’invio dei dati (da rendere attraverso il punto in calce alla presente) non pregiudica la detrazione della spesa, bensì comporta esclusivamente che la fattura non venga inserita automaticamente nella dichiarazione precompilata.
A67: 10. | B67: L’eventuale lista dei responsabili del trattamento e degli altri soggetti cui vengono comunicati i dati può essere visonata a richiesta.
A69: 11. | B69: Al persistere di talune condizioni, in relazione alle specificità connesse con l’esecuzione dell’incarico, sarà possibile all’interessato esercitare i diritti di cui agli articoli da 15 a 22 del GDPR (come ad es. l’accesso ai dati personali nonché la loro rettifica, cancellazione, limitazione del trattamento, copia dei dati personali in un formato strutturato di uso comune e leggibile da dispositivo automatico e la trasmissione di tali dati a un altro titolare del trattamento). Nel caso di specie sarà onere del professionista verificare la legittimità delle richieste fornendo riscontro, di regola, entro 30 giorni.
A71: 12. | B71: Per eventuali reclami o segnalazioni sulle modalità di trattamento dei dati è buona norma rivolgersi al Titolare del trattamento dei dati. Tuttavia è possibile inoltrare i propri reclami o le proprie segnalazioni all’Autorità responsabile della protezione dei dati, utilizzando gli estremi di contatto pertinenti: Garante per la protezione dei dati personali - piazza di Montecitorio n.121 - 00186 ROMA - fax: (+39) 06.696773785 - telefono: (+39) 06.696771 PEO: garante@gpdp.it - PEC: protocollo@pec.gpdp.it .
A73: Modello Psy18
A75: Visto e compreso tutto quanto sopra indicato,
D76: - per proprio conto
D78: - nell’esercizio della responsabilità genitoriale sulla/sul minore
D80: - esercitando la rappresentanza legale su
D82: - altro (specificare) ________________________________________________________
A87: avendo ricevuto apposita informativa professionale e informazioni adeguate in relazione a costi, fini e modalità della stessa, esprime il proprio libero consenso, barrando la casella di seguito, alla prestazione e al preventivo suindicati.
D88: FORNISCE IL CONSENSO
D90: NON FORNISCE IL CONSENSO
A92: avendo ricevuto apposita informativa sul trattamento dei dati personali e in relazione a quanto indicato in relazione al trattamento dei dati relativi al proprio stato di salute, esprime il proprio libero consenso, barrando la casella di seguito indicata, al trattamento e alla comunicazione dei propri dati personali per tutte le finalità indicate nella presente informativa.
D93: FORNISCE IL CONSENSO
D95: NON FORNISCE IL CONSENSO
A97: In caso di prestazione sanitaria per l’invio all’Agenzia delle Entrate dei dati anagrafici, di contatto e di pagamento tramite flusso telematico su Sistema Tessera Sanitaria, ai fini della dichiarazione dei redditi precompilata.
D99: NON FORNISCE IL CONSENSO
A101: Luogo e data ____________________________________
A103: Firme/a ______________________________________ ______________________________________
A105: Timbro e firma della/del Professionista _____________________________________

Sheet Trattamento_Dati (hidden)
A1: =Impostazioni!L3 -> 0 | B1: =Impostazioni!L5 -> 0
A2: =Impostazioni!L7 -> 0
A3: =CONCATENATE("Cod. Fisc. ",Impostazioni!M9," - p.iva ",Impostazioni!M11) -> Cod. Fisc. - p.iva
B5: INFORMATIVA SULLA PRIVACY
B6: AI SENSI DELL’ART. 13 D. LGS. 196/2003
B10: la presente informativa Le viene consegnata in ottemperanza all’art. 13 Decreto Legislativo 196/2003. I dati da Lei forniti verranno trattati per le finalità inerenti la consulenza professionale da Lei richiesta e in particolare riguarderanno:
B11: ● l’elaborazione della fatturazione per prestazioni sanitarie.
B12: Il trattamento dei dati si svolgerà nel pieno rispetto delle libertà fondamentali senza ledere la Sua riservatezza e la Sua dignità, adottando sempre principi ispiranti alla correttezza, liceità e trasparenza e per scopi non eccedenti rispetto alle finalità della raccolta. Per il trattamento dei Suoi dati verranno utilizzati strumenti sia elettronici che manuali adottando tutte le misure di sicurezza idonee a garantire la riservatezza e l’integrità dei dati. I dati trattati non verranno comunicati a soggetti privi di autorizzazione concessa dal Titolare o dal Responsabile, fatta salva la comunicazione o diffusione di dati richieste, in conformità alla legge, da forze di polizia, dall’autorità giudiziaria, da organismi di informazione e sicurezza o da altri soggetti pubblici per finalità di difesa o sicurezza dello Stato, di prevenzione, accertamento o repressione di reati. Il trattamento potrà riguardare anche la tipologia dei dati cosiddetti “Sensibili”, quei dati, cioè, idonei a rivelare l’origine razziale ed etnica, le convinzioni religiose, filosofiche o di altro genere, le opinioni politiche, l’adesione a partiti, sindacati, associazioni od organizzazioni a carattere religioso, filosofico, politico o sindacale, nonché i dati personali idonei a rivelare lo stato di salute e la vita sessuale. Tale trattamento può essere autorizzato solo con il Suo consenso manifestato per iscritto.
B13: Il conferimento dei dati è facoltativo ma il rifiuto a fornirli potrebbe pregiudicare la parziale o totale esecuzione delle attività di emissione delle fatture per prestazioni sanitarie a Lei intestate.
B14: I dati da Lei forniti verranno trattati nella sede:
B15: Sede del trattamento | D15: Responsabile del trattamento
B16: =Impostazioni!L7 -> 0 | D16: =CONCATENATE(Impostazioni!L3," ",Impostazioni!L5) -> 
B17: =CONCATENATE("Il Titolare del trattamento dei dati è ",Impostazioni!L5,".") -> Il Titolare del trattamento dei dati è .
B18: Il comma 2 dell’art. 7 del D. Lgs 196/2003 Le conferisce il diritto di chiedere l’elenco aggiornato dei soggetti che possono venire a conoscenza dei dati trattati. In qualità di Interessato in ogni momento potrà fare valere tutti i diritti garantiti dall’art. 7 del D. Lgs 196/2003 nei confronti del Titolare del trattamento. In allegato è presente il dettaglio dell’articolo citato.
B19: Consenso al trattamento dei dati personali
B20: Firmando la presente Lei dichiara di avere ricevuto l’informativa sulla Privacy, di averne preso visione e di autorizzare il Titolare al trattamento dei dati personali.
B21: =CONCATENATE("Messina ",TEXT(TODAY(),"gg/mm/aaa")) -> Messina 31/05/2019
B23: Il Titolare del trattamento | D23: L'Interessato
B25: ___________________________ | D25: ___________________________
B26: =CONCATENATE("(",Impostazioni!L5,")") -> ()
E31: consenso al trattamento dei dati personali
B36: INFORMATIVA SULLA PRIVACY AI SENSI DELL’ART. 13 DEL D. LGS. 196/2003
B42: Art. 7 - D. Lgs 196/2003
B43: Diritto di accesso ai dati personali ed altri diritti
B44: 1. l’interessato ha diritto di ottenere la conferma dell’esistenza o meno dei dati personali che lo riguardano, anche se non ancora registrati, e la loro comunicazione in forma intelligibile.
B45: 2. l’interessato ha diritto di ottenere l’indicazione:
B46: a. dell’origine dei dati personali;
B47: b. delle finalità e modalità del trattamento;
B48: c. della logica applicata in caso di trattamento effettuato con l’ausilio di strumenti elettronici;
B49: d. degli estremi identificativi del titolare, dei responsabili e del rappresentante designato ai sensi dell’articolo 5, comma 2;
B50: e. dei soggetti o delle categorie di soggetti ai quali personali possono essere comunicati o che possono venire a conoscenza in qualità di rappresentante designato nel territorio dello Stato, di responsabili o incaricati.
B51: 3. L’interessato ha diritto di ottenere:
B52: a. l’aggiornamento, la rettificazione ovvero, quando vi ha interesse, l’integrazione dei dati;
B53: b. la cancellazione, la trasformazione in forma anonima o il blocco dei dati trattati in violazione di legge, compresi quelli di cui non è necessaria la conservazione in relazione agli scopi per i quali i dati sono stati raccolti o successivamente trattati;
B54: c. l’attestazione che le operazioni di cui alle lettere a) e b) sono state portate a conoscenza, anche per quanto riguarda il loro contenuto, di coloro ai quali i dati sono stati comunicati o diffusi eccettuato il caso in cui tale adempimento si rivela impossibile o comporta un impegno di mezzi manifestamente sproporzionato rispetto al diritto tutelato.
B55: 4. L’interessato ha diritto di opporsi, in tutto o in parte:
B56: a. per motivi legittimi al trattamento dei dati personali che lo riguardano, ancorché pertinenti allo scopo della raccolta;
B57: b. al trattamento di dati personali che lo riguardano ai fini di invio di materiale pubblicitario o di vendita diretta o per il compimento di ricerche di mercato o di comunicazione commerciale.
B59: Art. 4, comma 1, lettera a) – D. Lgs 196/2003
B60: Trattamento: qualunque operazione o complesso di operazioni, effettuati anche senza l’ausilio di strumenti elettronici, concernenti la raccolta, la registrazione, l’organizzazione, la conservazione, la consultazione, l’elaborazione, la modificazione, la selezione, l’estrazione, il raffronto, l’utilizzo, l’interconnessione, il blocco, la comunicazione, la diffusione, la cancellazione e la distribuzione dei dati, anche se non registrati in banca di dati.
E69: consenso al trattamento dei dati personali

Sheet Comuni (hidden)
A1: A001 | B1: ABANO TERME (PD) | C1: PD | E1: A | F1: Gen | G1: Gennaio | H1: 0 | I1: 0 | J1: 1 | K1: 0 | L1: A
A2: A004 | B2: ABBADIA CERRETO (LO) | C2: LO | E2: B | F2: Feb | G2: Febbraio | H2: 1 | I2: 1 | J2: 0 | K2: 1 | L2: B
A3: A005 | B3: ABBADIA LARIANA (LC) | C3: LC | E3: C | F3: Mar | G3: Marzo | H3: 2 | I3: 2 | J3: 5 | K3: 2 | L3: C
A4: A006 | B4: ABBADIA SAN SALVATORE (SI) | C4: SI | E4: D | F4: Apr | G4: Aprile | H4: 3 | I4: 3 | J4: 7 | K4: 3 | L4: D
A5: A007 | B5: ABBASANTA (OR) | C5: OR | E5: E | F5: Mag | G5: Maggio | H5: 4 | I5: 4 | J5: 9 | K5: 4 | L5: E
A6: A008 | B6: ABBATEGGIO (PE) | C6: PE | E6: H | F6: Giu | G6: Giugno | H6: 5 | I6: 5 | J6: 13 | K6: 5 | L6: F
A7: A010 | B7: ABBIATEGRASSO (MI) | C7: MI | E7: L | F7: Lug | G7: Luglio | H7: 6 | I7: 6 | J7: 15 | K7: 6 | L7: G
A8: A012 | B8: ABETONE (soppresso) (PT) | C8: PT | E8: M | F8: Ago | G8: Agosto | H8: 7 | I8: 7 | J8: 17 | K8: 7 | L8: H
A9: M376 | B9: ABETONE CUTIGLIANO (PT) | C9: PT | E9: P | F9: Set | G9: Settembre | H9: 8 | I9: 8 | J9: 19 | K9: 8 | L9: I
A10: A013 | B10: ABRIOLA (PZ) | C10: PZ | E10: R | F10: Ott | G10: Ottobre | H10: 9 | I10: 9 | J10: 21 | K10: 9 | L10: J
A11: A014 | B11: ACATE (RG) | C11: RG | E11: S | F11: Nov | G11: Novembre | H11: A | I11: 0 | J11: 1 | K11: 10 | L11: K
A12: A015 | B12: ACCADIA (FG) | C12: FG | E12: T | F12: Dic | G12: Dicembre | H12: B | I12: 1 | J12: 0 | K12: 11 | L12: L
A13: A016 | B13: ACCEGLIO (CN) | C13: CN | H13: C | I13: 2 | J13: 5 | K13: 12 | L13: M
A14: A017 | B14: ACCETTURA (MT) | C14: MT | H14: D | I14: 3 | J14: 7 | K14: 13 | L14: N
A15: A018 | B15: ACCIANO (AQ) | C15: AQ | H15: E | I15: 4 | J15: 9 | K15: 14 | L15: O
A16: A019 | B16: ACCUMOLI (RI) | C16: RI | H16: F | I16: 5 | J16: 13 | K16: 15 | L16: P
A17: A020 | B17: ACERENZA (PZ) | C17: PZ | H17: G | I17: 6 | J17: 15 | K17: 16 | L17: Q
A18: A023 | B18: ACERNO (SA) | C18: SA | H18: H | I18: 7 | J18: 17 | K18: 17 | L18: R
A19: A024 | B19: ACERRA (NA) | C19: NA | H19: I | I19: 8 | J19: 19 | K19: 18 | L19: S
A20: A025 | B20: ACI BONACCORSI (CT) | C20: CT | H20: J | I20: 9 | J20: 21 | K20: 19 | L20: T
A21: A026 | B21: ACI CASTELLO (CT) | C21: CT | H21: K | I21: 10 | J21: 2 | K21: 20 | L21: U
A22: A027 | B22: ACI CATENA (CT) | C22: CT | H22: L | I22: 11 | J22: 4 | K22: 21 | L22: V
A23: A029 | B23: ACI SANT'ANTONIO (CT) | C23: CT | H23: M | I23: 12 | J23: 18 | K23: 22 | L23: W
A24: A028 | B24: ACIREALE (CT) | C24: CT | H24: N | I24: 13 | J24: 20 | K24: 23 | L24: X
A25: A031 | B25: ACQUACANINA (soppresso) (MC) | C25: MC | H25: O | I25: 14 | J25: 11 | K25: 24 | L25: Y
A26: A032 | B26: ACQUAFONDATA (FR) | C26: FR | H26: P | I26: 15 | J26: 3 | K26: 25 | L26: Z
A27: A033 | B27: ACQUAFORMOSA (CS) | C27: CS | H27: Q | I27: 16 | J27: 6
A28: A034 | B28: ACQUAFREDDA (BS) | C28: BS | H28: R | I28: 17 | J28: 8
A29: A035 | B29: ACQUALAGNA (PU) | C29: PU | H29: S | I29: 18 | J29: 12
A30: A039 | B30: ACQUANEGRA CREMONESE (CR) | C30: CR | H30: T | I30: 19 | J30: 14
A31: A038 | B31: ACQUANEGRA SUL CHIESE (MN) | C31: MN | H31: U | I31: 20 | J31: 16
A32: A040 | B32: ACQUAPENDENTE (VT) | C32: VT | H32: V | I32: 21 | J32: 10
A33: A041 | B33: ACQUAPPESA (CS) | C33: CS | H33: W | I33: 22 | J33: 22
A34: A042 | B34: ACQUARICA DEL CAPO (LE) | C34: LE | H34: X | I34: 23 | J34: 25
A35: A043 | B35: ACQUARO (VV) | C35: VV | H35: Y | I35: 24 | J35: 24
A36: A044 | B36: ACQUASANTA TERME (AP) | C36: AP | H36: Z | I36: 25 | J36: 23
A37: A045 | B37: ACQUASPARTA (TR) | C37: TR | H37: CARATT. | I37: PARI | J37: DISPARI | K37: RESTO | L37: cin
A38: A050 | B38: ACQUAVIVA COLLECROCE (CB) | C38: CB
A39: A048 | B39: ACQUAVIVA DELLE FONTI (BA) | C39: BA
A40: A051 | B40: ACQUAVIVA D'ISERNIA (IS) | C40: IS
A41: A047 | B41: ACQUAVIVA PICENA (AP) | C41: AP
A42: A049 | B42: ACQUAVIVA PLATANI (CL) | C42: CL
A43: M211 | B43: ACQUEDOLCI (ME) | C43: ME
A44: A052 | B44: ACQUI TERME (AL) | C44: AL
A45: A053 | B45: ACRI (CS) | C45: CS
A46: A054 | B46: ACUTO (FR) | C46: FR
A47: A055 | B47: ADELFIA (BA) | C47: BA
A48: A056 | B48: ADRANO (CT) | C48: CT
A49: A057 | B49: ADRARA SAN MARTINO (BG) | C49: BG
A50: A058 | B50: ADRARA SAN ROCCO (BG) | C50: BG
A51: A059 | B51: ADRIA (RO) | C51: RO
A52: A060 | B52: ADRO (BS) | C52: BS
A53: A061 | B53: AFFI (VR) | C53: VR
A54: A062 | B54: AFFILE (RM) | C54: RM
A55: A064 | B55: AFRAGOLA (NA) | C55: NA
A56: A065 | B56: AFRICO (RC) | C56: RC
A57: A067 | B57: AGAZZANO (PC) | C57: PC
A58: A068 | B58: AGEROLA (NA) | C58: NA
A59: A069 | B59: AGGIUS (SS) | C59: SS
A60: A070 | B60: AGIRA (EN) | C60: EN
A61: A071 | B61: AGLIANA (PT) | C61: PT
A62: A072 | B62: AGLIANO TERME (AT) | C62: AT
A63: A074 | B63: AGLIE' (TO) | C63: TO
A64: H848 | B64: AGLIENTU (SS) | C64: SS
A65: A075 | B65: AGNA (PD) | C65: PD
A66: A076 | B66: AGNADELLO (CR) | C66: CR
A67: A077 | B67: AGNANA CALABRA (RC) | C67: RC
A68: A080 | B68: AGNONE (IS) | C68: IS
A69: A082 | B69: AGNOSINE (BS) | C69: BS
A70: A083 | B70: AGORDO (BL) | C70: BL
A71: A084 | B71: AGOSTA (RM) | C71: RM
A72: A085 | B72: AGRA (VA) | C72: VA
A73: A087 | B73: AGRATE BRIANZA (MB) | C73: MB
A74: A088 | B74: AGRATE CONTURBIA (NO) | C74: NO
A75: A089 | B75: AGRIGENTO (AG) | C75: AG
A76: A091 | B76: AGROPOLI (SA) | C76: SA
A77: A092 | B77: AGUGLIANO (AN) | C77: AN
A78: A093 | B78: AGUGLIARO (VI) | C78: VI
A79: A096 | B79: AICURZIO (MB) | C79: MB
A80: A097 | B80: AIDOMAGGIORE (OR) | C80: OR
A81: A098 | B81: AIDONE (EN) | C81: EN
A82: A100 | B82: AIELLI (AQ) | C82: AQ
A83: A102 | B83: AIELLO CALABRO (CS) | C83: CS
A84: A103 | B84: AIELLO DEL FRIULI (UD) | C84: UD
A85: A101 | B85: AIELLO DEL SABATO (AV) | C85: AV
A86: A105 | B86: AIETA (CS) | C86: CS
A87: A106 | B87: AILANO (CE) | C87: CE
A88: A107 | B88: AILOCHE (BI) | C88: BI
A89: A109 | B89: AIRASCA (TO) | C89: TO
A90: A110 | B90: AIROLA (BN) | C90: BN
A91: A111 | B91: AIROLE (IM) | C91: IM
A92: A112 | B92: AIRUNO (LC) | C92: LC
A93: A113 | B93: AISONE (CN) | C93: CN
A94: A116 | B94: ALA (TN) | C94: TN
A95: A115 | B95: ALA' DEI SARDI (SS) | C95: SS
A96: A117 | B96: ALA DI STURA (TO) | C96: TO
A97: A118 | B97: ALAGNA (PV) | C97: PV
A98: A119 | B98: ALAGNA VALSESIA (VC) | C98: VC
A99: A120 | B99: ALANNO (PE) | C99: PE
A100: A121 | B100: ALANO DI PIAVE (BL) | C100: BL
A101: A122 | B101: ALASSIO (SV) | C101: SV
A102: A123 | B102: ALATRI (FR) | C102: FR
A103: A124 | B103: ALBA (CN) | C103: CN
A104: A125 | B104: ALBA ADRIATICA (TE) | C104: TE
A105: A126 | B105: ALBAGIARA (OR) | C105: OR
A106: A127 | B106: ALBAIRATE (MI) | C106: MI
A107: A128 | B107: ALBANELLA (SA) | C107: SA
A108: A131 | B108: ALBANO DI LUCANIA (PZ) | C108: PZ
A109: A132 | B109: ALBANO LAZIALE (RM) | C109: RM
A110: A129 | B110: ALBANO SANT'ALESSANDRO (BG) | C110: BG
A111: A130 | B111: ALBANO VERCELLESE (VC) | C111: VC
A112: A134 | B112: ALBAREDO ARNABOLDI (PV) | C112: PV
A113: A137 | B113: ALBAREDO D'ADIGE (VR) | C113: VR
A114: A135 | B114: ALBAREDO PER SAN MARCO (SO) | C114: SO
A115: A138 | B115: ALBARETO (PR) | C115: PR
A116: A139 | B116: ALBARETTO DELLA TORRE (CN) | C116: CN
A117: A143 | B117: ALBAVILLA (CO) | C117: CO
A118: A145 | B118: ALBENGA (SV) | C118: SV
A119: A146 | B119: ALBERA LIGURE (AL) | C119: AL
A120: A149 | B120: ALBEROBELLO (BA) | C120: BA
A121: A150 | B121: ALBERONA (FG) | C121: FG
A122: A153 | B122: ALBESE CON CASSANO (CO) | C122: CO
A123: A154 | B123: ALBETTONE (VI) | C123: VI
A124: A155 | B124: ALBI (CZ) | C124: CZ
A125: A158 | B125: ALBIANO (TN) | C125: TN
A126: A157 | B126: ALBIANO D'IVREA (TO) | C126: TO
A127: A159 | B127: ALBIATE (MB) | C127: MB
A128: A160 | B128: ALBIDONA (CS) | C128: CS
A129: A161 | B129: ALBIGNASEGO (PD) | C129: PD
A130: A162 | B130: ALBINEA (RE) | C130: RE
A131: A163 | B131: ALBINO (BG) | C131: BG
A132: A164 | B132: ALBIOLO (CO) | C132: CO
A133: A166 | B133: ALBISOLA SUPERIORE (SV) | C133: SV
A134: A165 | B134: ALBISSOLA MARINA (SV) | C134: SV
A135: A167 | B135: ALBIZZATE (VA) | C135: VA
A136: A171 | B136: ALBONESE (PV) | C136: PV
A137: A172 | B137: ALBOSAGGIA (SO) | C137: SO
A138: A173 | B138: ALBUGNANO (AT) | C138: AT
A139: A175 | B139: ALBUZZANO (PV) | C139: PV
A140: A176 | B140: ALCAMO (TP) | C140: TP
A141: A177 | B141: ALCARA LI FUSI (ME) | C141: ME
A142: A178 | B142: ALDENO (TN) | C142: TN
A143: A179 | B143: ALDINO .ALDEIN. (BZ) | C143: BZ
A144: A180 | B144: ALES (OR) | C144: OR
A145: A182 | B145: ALESSANDRIA (AL) | C145: AL
A146: A183 | B146: ALESSANDRIA DEL CARRETTO (CS) | C146: CS
A147: A181 | B147: ALESSANDRIA DELLA ROCCA (AG) | C147: AG
A148: A184 | B148: ALESSANO (LE) | C148: LE
A149: A185 | B149: ALEZIO (LE) | C149: LE
A150: A186 | B150: ALFANO (SA) | C150: SA
A151: A187 | B151: ALFEDENA (AQ) | C151: AQ
A152: A188 | B152: ALFIANELLO (BS) | C152: BS
A153: A189 | B153: ALFIANO NATTA (AL) | C153: AL
A154: A191 | B154: ALFONSINE (RA) | C154: RA
A155: A192 | B155: ALGHERO (SS) | C155: SS
A156: A193 | B156: ALGUA (BG) | C156: BG
A157: A194 | B157: ALI' (ME) | C157: ME
A158: A201 | B158: ALI' TERME (ME) | C158: ME
A159: A195 | B159: ALIA (PA) | C159: PA
A160: A196 | B160: ALIANO (MT) | C160: MT
A161: A197 | B161: ALICE BEL COLLE (AL) | C161: AL
A162: A198 | B162: ALICE CASTELLO (VC) | C162: VC
A163: A199 | B163: ALICE SUPERIORE (TO) | C163: TO
A164: A200 | B164: ALIFE (CE) | C164: CE
A165: A202 | B165: ALIMENA (PA) | C165: PA
A166: A203 | B166: ALIMINUSA (PA) | C166: PA
A167: A204 | B167: ALLAI (OR) | C167: OR
A168: A206 | B168: ALLEGHE (BL) | C168: BL
A169: A205 | B169: ALLEIN (AO) | C169: AO
A170: A207 | B170: ALLERONA (TR) | C170: TR
A171: A208 | B171: ALLISTE (LE) | C171: LE
A172: A210 | B172: ALLUMIERE (RM) | C172: RM
A173: A211 | B173: ALLUVIONI CAMBIO' (soppresso) (AL) | C173: AL
A174: M397 | B174: ALLUVIONI PIOVERA | C174: AL
A175: A214 | B175: ALME' (BG) | C175: BG
A176: A216 | B176: ALMENNO SAN BARTOLOMEO (BG) | C176: BG
A177: A217 | B177: ALMENNO SAN SALVATORE (BG) | C177: BG
A178: A218 | B178: ALMESE (TO) | C178: TO
A179: A220 | B179: ALONTE (VI) | C179: VI
A180: M375 | B180: ALPAGO (BL) | C180: BL
A181: A221 | B181: ALPETTE (TO) | C181: TO
A182: A222 | B182: ALPIGNANO (TO) | C182: TO
A183: A223 | B183: ALSENO (PC) | C183: PC
A184: A224 | B184: ALSERIO (CO) | C184: CO
A185: M386 | B185: ALTA VAL TIDONE | C185: PC
A186: M383 | B186: ALTA VALLE INTELVI (CO) | C186: CO
A187: A225 | B187: ALTAMURA (BA) | C187: BA
A188: A226 | B188: ALTARE (SV) | C188: SV
A189: M349 | B189: ALTAVALLE (TN) | C189: TN
A190: A228 | B190: ALTAVILLA IRPINA (AV) | C190: AV
A191: A229 | B191: ALTAVILLA MILICIA (PA) | C191: PA
A192: A227 | B192: ALTAVILLA MONFERRATO (AL) | C192: AL
A193: A230 | B193: ALTAVILLA SILENTINA (SA) | C193: SA
A194: A231 | B194: ALTAVILLA VICENTINA (VI) | C194: VI
A195: A233 | B195: ALTIDONA (FM) | C195: FM
A196: A234 | B196: ALTILIA (CS) | C196: CS
A197: A235 | B197: ALTINO (CH) | C197: CH
A198: A236 | B198: ALTISSIMO (VI) | C198: VI
A199: A237 | B199: ALTIVOLE (TV) | C199: TV
A200: A238 | B200: ALTO (CN) | C200: CN
... 7994 more rows
